bitfinex/quotes_ETHUSD_20250823
["timestamp","ask_amount","ask_price","bid_price","bid_amount"]
[1755916134357,10.70270617,4723.7,4722.0,0.44669868]
[1755916134358,6.709,4723.7,4722.0,0.44669868]
[1755916134570,3.883,4723.6,4722.1,0.00739853]
[1755916135158,4.0408711,4723.6,4722.1,0.00739853]
[1755916135473,0.1578711,4723.6,4722.1,0.00739853]
[1755916135673,6.709,4723.7,4721.9,0.4393]
[1755916135674,3.886,4723.5,4721.9,0.4393]
[1755916135837,3.886,4723.5,4722.2,0.00584469]
[1755916136476,3.885,4723.4,4722.2,0.00584469]
[1755916136771,3.885,4723.4,4722.3,0.4393]
[1755916136974,3.885,4723.4,4721.6,0.4393]
[1755916137477,3.885,4723.4,4721.7,0.00695608]
[1755916137478,0.66,4723.2,4721.7,0.00695608]
[1755916137770,0.314,4721.8,4721.2,0.001]
[1755916137940,6.713,4721.7,4721.2,0.001]
[1755916138145,0.314,4721.3,4721.2,0.001]
[1755916138460,4.202,4721.3,4721.2,0.001]
[1755916138666,4.6488,4721.3,4721.2,0.001]
[1755916138984,4.36182079,4721.3,4721.2,0.001]
[1755916139143,0.15782079,4721.3,4721.2,0.001]
[1755916139472,3.893,4721.3,4721.2,0.001]
[1755916139971,4.81502581,4721.3,4721.2,0.001]
[1755916140170,4.92062581,4721.3,4721.2,0.001]
[1755916140369,4.45432581,4721.3,4721.2,0.001]
[1755916140974,4.16012581,4721.3,4721.2,0.001]
[1755916141180,0.26712581,4721.3,4721.2,0.001]
[1755916141343,0.26712581,4721.3,4721.2,0.7374]
[1755916141547,4.16412581,4721.3,4721.2,0.7374]
[1755916142064,1.627,4721.7,4721.2,0.7374]
[1755916142268,1.628,4721.6,4721.3,0.4393]
[1755916142469,3.897,4721.5,4721.2,0.001]
[1755916142766,1.628,4721.6,4721.2,0.001]
[1755916142767,3.902,4721.4,4721.3,0.4393]
[1755916143147,3.902,4721.4,4721.2,0.001]
[1755916143346,3.902,4721.4,4721.3,0.2971]
[1755916143580,3.9,4721.4,4721.3,0.7364]
[1755916143886,3.9,4721.4,4721.2,0.001]
[1755916144381,1.628,4721.6,4721.3,0.7364]
[1755916144594,1.628,4722.1,4721.4,0.4393]
[1755916144795,1.628,4722.1,4722.0,0.2971]
[1755916145092,5.528,4722.1,4722.0,0.7364]
[1755916145495,5.528,4722.1,4722.0,0.2971]
[1755916145698,5.528,4722.1,4721.4,0.4393]
[1755916145897,5.528,4722.1,4721.2,0.001]
[1755916146267,1.628,4722.1,4721.2,0.001]
[1755916146784,3.9,4722.0,4721.2,0.001]
[1755916148274,1.628,4722.1,4721.2,0.001]
[1755916148600,3.897,4722.0,4721.3,0.4604806]
[1755916148785,3.897,4722.0,4721.9,0.2971]
[1755916149099,3.896,4722.0,4721.9,0.7364]
[1755916149264,1.628,4722.1,4721.9,0.7364]
[1755916149691,3.895,4722.0,4721.9,0.7364]
[1755916150488,3.894,4722.0,4721.9,0.7364]
[1755916150807,3.892,4722.0,4721.9,0.7364]
[1755916151172,3.892,4722.0,4721.4,0.3801]
[1755916151401,3.892,4722.0,4721.5,0.0211797]
[1755916151769,3.892,4722.0,4721.2,0.001]
[1755916151965,0.1056,4721.9,4721.3,0.1056]
[1755916152183,0.1056,4721.9,4721.8,0.2971]
[1755916153197,0.1056,4721.9,4721.3,0.1056]
[1755916153391,0.1056,4721.9,4721.8,0.2971]
[1755916153639,0.1056,4721.9,4721.4,0.4393]
[1755916153786,0.1056,4721.9,4721.5,0.4604797]
[1755916154129,0.1026,4721.9,4721.6,0.4393]
[1755916154619,0.1026,4721.9,4721.8,0.2971]
[1755916154836,1.63,4722.1,4721.8,0.7364]
[1755916154987,3.879,4721.9,4721.8,0.7364]
[1755916155853,3.879,4721.9,4721.8,0.2971]
[1755916155987,3.9846,4721.9,4721.8,0.2971]
[1755916156888,0.1056,4721.9,4721.2,0.001]
[1755916157106,0.1056,4721.6,4721.2,0.4403]
[1755916157310,0.1056,4721.6,4721.5,0.2971]
[1755916157732,0.1056,4721.6,4721.5,0.7364]
[1755916157939,3.9786,4721.6,4721.5,0.7364]
[1755916158609,3.9786,4721.6,4721.5,0.2971]
[1755916158911,3.9786,4721.6,4721.2,0.001]
[1755916159102,0.3163,4721.3,4721.2,0.001]
[1755916159302,3.874,4721.3,4721.2,0.001]
[1755916159509,3.876,4721.3,4721.2,0.3089]
[1755916159719,3.876,4721.3,4721.2,0.7773]
[1755916160922,1.63,4722.1,4721.2,0.7773]
[1755916161154,3.877,4722.0,4721.2,0.7773]
[1755916161363,3.877,4722.0,4721.2,0.3089]
[1755916161529,3.877,4722.0,4721.2,0.001]
[1755916161730,0.3163,4721.3,4721.2,0.001]
[1755916161932,4.1913,4721.3,4721.2,0.001]
[1755916162141,0.3163,4721.3,4721.2,0.001]
[1755916162342,1.63,4722.1,4721.2,0.001]
[1755916162529,3.875,4722.0,4721.2,0.001]
[1755916163057,0.3163,4721.3,4721.2,0.001]
[1755916163262,3.877,4721.3,4721.2,0.001]
[1755916163554,4.1933,4721.3,4721.2,0.001]
[1755916164763,4.1933,4721.3,4721.2,3.881]
[1755916165754,3.877,4721.3,4721.2,3.881]
[1755916165960,3.871,4721.3,4721.2,3.881]
[1755916166156,4.1873,4721.3,4721.2,3.881]
[1755916166355,4.6496,4721.3,4721.2,3.881]
[1755916167587,5.44805363,4721.3,4721.2,3.881]
[1755916167899,8.44805363,4721.3,4721.2,3.881]
[1755916168058,11.31256062,4721.3,4721.2,3.881]
[1755916168248,11.22611433,4721.3,4721.2,3.881]
[1755916168583,11.9720039,4721.3,4721.2,3.881]
[1755916168787,11.22555761,4721.3,4721.2,3.881]
[1755916169084,11.97148283,4721.3,4721.2,3.881]
[1755916169290,5.32229097,4721.3,4721.2,3.881]
[1755916169473,2.77819529,4721.0,4720.9,0.2469384]
[1755916169789,5.11824016,4720.9,4720.7,0.001]
[1755916169987,6.5389795,4720.9,4720.7,0.001]
[1755916170286,2.11828503,4720.8,4720.7,0.001]
[1755916170582,11.63002437,4720.8,4720.7,0.001]
[1755916170952,3.0,4720.7,4720.2,0.001]
[1755916171154,0.1056,4720.3,4720.2,0.001]
[1755916171359,0.1056,4720.3,4720.2,0.3089]
[1755916171657,3.893,4720.3,4720.2,0.3089]
[1755916171983,3.893,4720.3,4720.2,0.001]
[1755916172159,3.893,4720.3,4720.2,0.3089]
[1755916172362,3.893,4720.3,4720.2,0.7773]
[1755916172563,4.2093,4720.3,4720.2,0.7773]
[1755916172757,7.6716,4720.3,4720.2,0.001]
[1755916172958,8.11863018,4720.3,4720.2,0.001]
[1755916173275,8.44991698,4720.3,4720.2,0.001]
[1755916173586,8.64379836,4720.3,4720.2,0.001]
[1755916174084,4.75079836,4720.3,4720.2,0.001]
[1755916174275,0.77831698,4720.3,4720.2,0.001]
[1755916174470,4.5408888,4720.3,4720.2,0.001]
[1755916175263,0.6478888,4720.3,4720.2,0.001]
[1755916175588,4.2225888,4720.3,4720.2,0.001]
[1755916176094,4.2205888,4720.3,4720.2,0.001]
[1755916177579,4.2195888,4720.3,4720.2,0.001]
[1755916177788,4.2165888,4720.3,4720.2,0.001]
[1755916177989,1.629,4720.6,4720.2,0.7773]
[1755916178288,3.885,4720.5,4720.2,0.001]
[1755916178688,3.891,4720.4,4720.2,0.001]
[1755916180086,0.3586,4720.3,4720.2,0.001]
[1755916181506,0.4642,4720.3,4720.2,0.001]
[1755916181687,5.58270941,4720.3,4720.2,0.001]
[1755916181885,3.4642,4720.3,4720.2,0.001]
[1755916182088,5.58270941,4720.3,4720.2,0.001]
[1755916182303,6.24270941,4720.3,4720.2,0.001]
[1755916182499,6.68879911,4720.3,4720.2,0.001]
[1755916182678,6.24270941,4720.3,4720.2,0.001]
[1755916183007,6.68874589,4720.3,4720.2,0.001]
[1755916183181,6.88232855,4720.3,4720.2,0.001]
[1755916183875,4.54578266,4720.3,4720.2,0.001]
[1755916184075,9.57800941,4720.3,4720.2,0.001]
[1755916184306,10.21753681,4720.3,4720.2,0.001]
[1755916185312,10.87753681,4720.3,4720.2,0.001]
[1755916186513,5.77855429,4720.2,4720.1,0.001]
[1755916186710,7.1966861,4720.2,4720.1,0.001]
[1755916187478,6.5366861,4720.2,4720.1,0.001]
[1755916188078,0.66,4719.4,4716.7,0.4621]
[1755916188281,14.67961681,4718.7,4716.9,0.4621]
[1755916188508,6.935,4718.6,4716.9,0.4621]
[1755916188707,3.0,4718.4,4716.9,0.4621]
[1755916189301,5.11956134,4718.0,4716.2,0.4621]
[1755916189507,3.0,4717.8,4716.2,0.4621]
[1755916190014,2.11976545,4717.6,4716.2,0.4621]
[1755916190183,4.64573646,4716.9,4715.0,0.35]
[1755916190384,1.63,4716.4,4715.0,0.35]
[1755916190597,1.63,4716.4,4715.6,0.4621]
[1755916190800,1.63,4716.4,4715.9,0.4621]
[1755916190995,4.034,4716.3,4716.0,0.4621]
[1755916191197,4.034,4716.3,4716.2,0.2944]
[1755916191804,4.034,4716.3,4716.2,0.7565]
[1755916192299,3.0,4716.2,4715.0,0.35]
[1755916192695,5.45224375,4716.3,4715.0,0.35]
[1755916192896,7.031,4716.2,4715.0,0.35]
[1755916193216,2.4522014,4716.3,4715.0,0.35]
[1755916193217,2.16588601,4715.9,4715.0,0.35]
[1755916193387,0.0454,4715.9,4715.0,0.35]
[1755916193582,7.0744,4715.9,4715.0,0.35]
[1755916193817,9.19488601,4715.9,4715.0,0.35]
[1755916194196,9.62728601,4715.9,4715.0,0.35]
[1755916194401,9.19488601,4715.9,4715.0,0.35]
[1755916194909,3.0454,4715.9,4715.0,0.35]
[1755916195111,14.67961681,4716.0,4715.0,0.35]
[1755916195317,20.87540282,4715.9,4715.0,0.35]
[1755916195622,16.84940282,4715.9,4715.0,0.35]
[1755916195818,20.87740282,4715.9,4715.0,0.35]
[1755916196118,14.67961681,4715.9,4715.0,0.35]
[1755916196318,6.19958601,4715.9,4715.0,0.35]
[1755916196719,4.026,4715.9,4715.0,0.35]
[1755916197101,4.025,4715.9,4715.4,0.4621]
[1755916197316,4.025,4715.9,4715.8,0.7765]
[1755916197504,0.33189437,4716.3,4715.8,0.7765]
[1755916197703,3.0,4716.1,4715.8,0.02]
[1755916198118,0.1064,4715.9,4715.8,0.02]
[1755916198508,4.1284,4715.9,4715.8,0.02]
[1755916198907,4.1254,4715.9,4715.8,0.02]
[1755916199429,4.1244,4715.9,4715.8,0.02]
[1755916200124,0.1064,4715.9,4715.8,0.3144]
[1755916200327,4.1234,4715.9,4715.8,0.7765]
[1755916200494,4.017,4715.9,4715.8,0.7765]
[1755916200697,1.63,4716.4,4715.8,0.7765]
[1755916200929,4.015,4716.3,4715.9,0.4621]
[1755916201113,4.015,4716.3,4716.0,0.4621]
[1755916201332,4.015,4716.3,4715.8,0.02]
[1755916201535,4.017,4716.2,4715.8,0.02]
[1755916201836,4.017,4716.1,4715.8,0.02]
[1755916201997,4.015,4716.0,4715.8,0.02]
[1755916202193,4.015,4715.9,4715.8,0.02]
[1755916203516,1.63,4716.4,4715.8,0.02]
[1755916203517,1.63,4716.4,4715.8,0.7765]
[1755916203715,4.011,4716.3,4715.8,0.7765]
[1755916203895,1.63,4716.4,4715.9,0.4621]
[1755916204099,1.63,4716.4,4716.3,0.2944]
[1755916204349,5.639,4716.4,4716.3,0.7565]
[1755916204499,1.63,4716.4,4716.3,0.7565]
[1755916204701,5.639,4716.4,4716.3,0.7565]
[1755916205210,1.63,4716.4,4716.3,0.7565]
[1755916205727,4.33776007,4716.4,4716.3,0.7565]
[1755916205903,4.006,4716.4,4716.3,0.7565]
[1755916206303,2.13160295,4716.4,4716.3,0.7565]
[1755916206539,4.004,4717.1,4716.4,0.66]
[1755916206702,4.004,4717.0,4716.5,0.4621]
[1755916206903,4.004,4717.0,4716.9,0.2944]
[1755916207139,1.631,4717.5,4716.9,0.7565]
[1755916207302,4.005,4717.2,4717.0,0.48329991]
[1755916207502,0.04,4717.8,4717.1,0.2944]
[1755916207740,4.003,4717.7,4717.1,0.2944]
[1755916208043,0.02,4719.8,4717.8,0.66]
[1755916208242,0.02,4719.8,4718.7,0.2944]
[1755916208535,4.008,4720.4,4718.8,1.1221]
[1755916208741,4.008,4720.4,4720.3,0.2944]
[1755916209058,1.631,4720.9,4720.3,0.7565]
[1755916209216,4.007,4721.2,4720.4,0.48328464]
[1755916209549,1.633,4721.7,4720.6,0.2944]
[1755916209914,4.006,4721.0,4720.6,0.7565]
[1755916210310,4.002,4721.4,4720.6,0.7565]
[1755916210607,4.002,4721.4,4720.6,0.88328374]
[1755916210809,0.002,4721.7,4720.6,0.88328374]
[1755916211119,0.002,4721.7,4720.6,1.54328374]
[1755916211329,0.002,4721.7,4720.6,1.43768374]
[1755916211530,0.002,4721.7,4720.7,3.66]
[1755916211861,0.002,4721.7,4721.2,0.9544]
[1755916212067,0.002,4721.7,4721.2,5.60558105]
[1755916212372,0.04,4723.8,4721.8,0.66]
[1755916212510,0.04,4723.8,4722.3,0.66]
[1755916212831,0.04,4723.8,4722.7,0.66]
[1755916213167,0.04,4723.8,4722.7,30.66]
[1755916213443,0.04,4723.8,4722.7,8.3341]
[1755916213612,0.04,4723.8,4722.7,0.4621]
[1755916213813,0.04,4723.8,4722.7,0.48327432]
[1755916214015,0.04,4723.8,4722.7,0.4621]
[1755916214922,0.012,4723.8,4722.7,0.4621]
[1755916215440,0.012,4723.8,4722.8,0.02117387]
[1755916215675,0.012,4723.8,4723.0,0.66]
[1755916215969,0.012,4723.8,4722.9,0.4621]
[1755916216257,0.012,4723.8,4723.0,0.66]
[1755916216547,0.012,4723.8,4723.7,0.2944]
[1755916216906,0.012,4723.8,4723.7,0.7565]
[1755916217365,1.614,4725.1,4723.7,0.7565]
[1755916219540,0.002,4723.8,4723.7,0.7565]
[1755916220637,0.002,4723.8,4723.7,1.4165]
[1755916220835,0.002,4723.8,4723.7,31.4165]
[1755916221371,0.002,4723.8,4723.7,31.5221]
[1755916221668,0.002,4723.8,4723.7,20.6181]
[1755916222041,0.002,4723.8,4723.7,31.5221]
[1755916223074,0.002,4723.8,4723.7,34.5221]
[1755916223239,0.002,4723.8,4723.7,35.0221]
[1755916223445,0.002,4723.8,4723.7,34.5221]
[1755916223645,0.002,4723.8,4723.7,38.4911]
[1755916224092,0.002,4723.8,4723.7,0.7565]
[1755916224246,0.002,4723.8,4723.1,0.4408]
[1755916224445,0.002,4723.8,4723.2,0.02117208]
[1755916224655,0.4446,4724.9,4723.1,0.4408]
[1755916224869,0.4446,4724.9,4723.7,0.3047]
[1755916225075,1.628,4725.1,4723.8,0.02116939]
[1755916225353,1.628,4725.1,4723.9,0.4408]
[1755916225673,1.628,4725.1,4724.0,0.0211685]
[1755916225847,1.628,4725.1,4724.0,0.21399065]
[1755916226052,1.628,4725.1,4724.1,0.66]
[1755916226253,0.02,4725.8,4724.0,0.66]
[1755916226454,0.02,4725.8,4724.1,3.45774917]
[1755916226697,0.02,4725.8,4724.1,0.4408]
[1755916227064,0.02,4725.8,4724.2,0.19310827]
[1755916227261,0.02,4725.8,4725.7,0.9647]
[1755916227475,0.02,4725.8,4725.7,4.66654712]
[1755916228658,0.02,4725.8,4725.7,8.65054712]
[1755916228966,0.02,4725.8,4725.7,38.65054712]
[1755916229166,0.02,4725.8,4725.7,8.65054712]
[1755916229875,0.02,4725.8,4725.7,7.21054712]
[1755916230195,0.4447,4729.0,4725.8,3.66]
[1755916230398,0.4447,4729.0,4726.7,0.9647]
[1755916230597,1.628,4729.2,4726.7,2.7849888]
[1755916230598,0.4447,4728.3,4726.7,2.7849888]
[1755916230896,0.4447,4728.3,4726.7,6.7729888]
[1755916231264,0.3155,4726.8,4726.7,0.19320033]
[1755916231464,0.7602,4726.8,4725.5,1.627]
[1755916231669,0.7602,4726.8,4725.6,0.193179]
[1755916231864,0.3155,4726.8,4725.6,0.193179]
[1755916232064,0.4447,4726.7,4725.6,0.193179]
[1755916232292,0.4447,4726.7,4725.7,0.19384423]
[1755916232495,0.4447,4726.7,4725.0,3.988]
[1755916232682,0.4447,4726.7,4724.8,1.647]
[1755916232683,0.4447,4726.7,4725.1,0.19384519]
[1755916232869,0.2955,4725.2,4724.8,0.02]
[1755916233207,0.4447,4725.9,4724.8,0.02]
[1755916234076,0.4447,4726.6,4724.9,0.87505617]
[1755916234276,0.4447,4726.7,4725.8,0.1056]
[1755916234483,0.02,4726.8,4726.7,0.1056]
[1755916235347,0.02,4726.8,4726.7,0.29949171]
[1755916236130,0.022,4726.8,4726.7,0.29949171]
[1755916236300,0.022,4726.8,4726.7,0.30083404]
[1755916236503,0.022,4726.8,4726.7,0.74163404]
[1755916236831,0.022,4726.8,4726.7,1.40163404]
[1755916237050,0.022,4726.8,4726.7,1.42279044]
[1755916237206,0.022,4726.8,4726.7,1.40163404]
[1755916237746,0.022,4726.8,4726.7,0.74163404]
[1755916237933,0.022,4726.8,4726.7,4.72463404]
[1755916238091,0.022,4726.8,4726.7,4.28383404]
[1755916238295,0.022,4726.8,4726.7,0.30083404]
[1755916238701,0.4667,4726.8,4726.7,0.19523404]
[1755916238903,0.4667,4726.8,4725.8,0.02]
[1755916239343,0.022,4726.8,4725.9,0.02115999]
[1755916239509,0.022,4726.8,4725.8,0.02]
[1755916240465,0.022,4726.8,4726.0,0.66]
[1755916240667,0.022,4726.8,4725.9,0.4408]
[1755916240821,0.022,4726.8,4726.0,3.985]
[1755916241027,0.022,4726.8,4726.2,0.0063125]
[1755916241473,0.4447,4726.7,4726.2,0.0063125]
[1755916241624,0.4447,4726.6,4726.2,0.0063125]
[1755916241966,0.4447,4726.5,4726.2,0.0063125]
[1755916242173,0.4447,4726.4,4726.2,0.0063125]
[1755916242339,0.4447,4726.3,4726.2,0.0063125]
[1755916244092,0.7402,4726.3,4726.2,0.0063125]
[1755916248751,0.8458,4726.3,4726.2,0.0063125]
[1755916250268,0.8458,4726.3,4720.4,2.64575279]
[1755916250269,0.0063125,4725.9,4720.4,2.64575279]
[1755916250562,0.55741649,4724.5,4721.6,0.4594]
[1755916250742,2.0603,4724.4,4721.6,0.4594]
[1755916250944,5.64,4724.3,4721.9,0.02217791]
[1755916251141,3.44675102,4724.2,4721.9,0.001]
[1755916251367,3.5901022,4724.2,4721.9,0.001]
[1755916251575,0.87913915,4724.1,4721.9,0.001]
[1755916251868,3.66,4723.5,4721.9,0.001]
[1755916252042,2.11731745,4723.0,4721.9,0.001]
[1755916252369,3.0,4722.8,4721.9,0.001]
[1755916252569,3.0,4722.8,4718.8,0.02]
[1755916252570,0.66,4722.3,4718.8,0.02]
[1755916252867,0.55741649,4721.9,4718.8,0.02]
[1755916253172,4.019,4721.8,4718.8,0.02]
[1755916253344,4.4523,4721.8,4718.8,0.02]
[1755916253551,4.0933,4721.7,4718.8,0.02]
[1755916253748,0.4333,4721.7,4718.8,0.02]
[1755916253963,0.4333,4721.6,4718.8,0.02]
[1755916254279,2.11802728,4721.4,4718.8,0.02]
[1755916254447,3.0,4721.3,4718.8,0.02]
[1755916254647,1.627,4721.2,4719.2,0.4594]
[1755916254877,4.017,4721.1,4718.8,0.02]
[1755916255079,0.33158596,4721.5,4719.3,1.627]
[1755916255303,0.33158596,4721.5,4720.3,0.4594]
[1755916255886,0.33158596,4721.5,4720.9,0.0211824]
[1755916256211,0.33158596,4721.5,4721.0,0.02118195]
[1755916256407,0.33158596,4721.5,4721.1,0.4594]
[1755916256709,0.33158596,4721.5,4721.2,0.4594]
[1755916256883,0.33158596,4721.5,4721.3,0.4594]
[1755916257083,0.33158596,4721.5,4721.4,0.4594]
[1755916257399,5.088,4725.0,4721.5,0.66]
[1755916257714,2.0613,4724.9,4721.7,0.66]
[1755916257882,5.664,4724.8,4721.8,0.4594]
[1755916258584,1.628,4724.8,4721.9,2.482]
[1755916258918,4.036,4724.7,4722.0,2.0874]
[1755916259076,3.4333,4724.6,4721.2,0.4594]
[1755916259409,0.04,4722.8,4721.2,0.4594]
[1755916259580,0.04,4722.8,4721.3,0.0211806]
[1755916259781,0.04,4722.8,4721.4,0.4594]
[1755916260187,0.04,4722.8,4721.5,30.66]
[1755916260388,0.04,4722.8,4721.7,0.66]
[1755916260613,0.04,4722.8,4722.7,0.1056]
[1755916260912,0.04,4722.8,4722.5,0.1056]
[1755916261075,0.04,4722.8,4722.6,0.02117477]
[1755916261271,0.04,4722.8,4722.7,0.565]
[1755916261782,0.04,4722.8,4722.7,0.1056]
[1755916262615,0.1456,4722.8,4722.0,0.1056]
[1755916262820,0.1456,4722.8,4722.1,0.02117701]
[1755916262972,0.1456,4722.8,4719.5,10.0]
[1755916262973,0.04,4722.8,4719.7,1.628]
[1755916263311,0.04,4722.8,4720.6,0.4594]
[1755916264117,0.4333,4722.7,4720.6,0.4594]
[1755916264432,1.628,4722.6,4720.5,0.001]
[1755916264576,0.4333,4722.5,4720.5,0.001]
[1755916265589,4.029,4722.4,4720.5,0.001]
[1755916265923,0.4333,4722.5,4720.5,0.001]
[1755916265924,0.4333,4722.5,4720.9,0.0211824]
[1755916266092,4.025,4722.3,4720.5,0.001]
[1755916266286,0.4333,4722.2,4720.5,0.001]
[1755916267022,3.4333,4722.2,4720.5,0.001]
[1755916267246,0.4333,4722.1,4720.5,0.001]
[1755916268119,2.11795596,4721.6,4720.5,0.001]
[1755916268317,1.628,4721.5,4720.5,0.001]
[1755916268650,5.1180276,4721.4,4720.5,0.001]
[1755916268797,3.4333,4721.4,4720.5,0.001]
[1755916269132,3.66,4721.0,4717.8,0.02]
[1755916269344,0.66,4720.7,4717.8,0.02]
[1755916269487,2.11868895,4719.9,4717.8,0.02]
[1755916269925,0.4333,4719.9,4717.8,0.02]
[1755916270255,3.4333,4719.9,4717.8,0.02]
[1755916270549,0.33166552,4720.5,4718.1,0.4594]
[1755916270753,4.4573,4720.4,4718.2,0.02119452]
[1755916270952,4.4573,4720.4,4718.1,0.4594]
[1755916271159,4.35560182,4720.4,4718.7,0.4594]
[1755916271539,4.35560182,4720.4,4718.3,0.4594]
[1755916271740,0.33160182,4720.4,4718.4,0.02119362]
[1755916271949,0.33160182,4720.4,4717.8,0.02]
[1755916271950,4.02,4720.3,4718.7,0.4594]
[1755916272466,0.4333,4720.2,4718.2,0.4594]
[1755916272666,3.4333,4720.2,4718.2,0.4594]
[1755916272876,0.4333,4720.1,4718.2,0.4594]
[1755916273072,0.1056,4719.9,4718.2,0.4594]
[1755916273684,7.5599,4719.9,4717.8,0.02]
[1755916273840,10.01021339,4719.9,4717.8,0.02]
[1755916274168,7.89152444,4719.9,4717.8,0.02]
[1755916274589,10.67021339,4719.9,4717.8,0.02]
[1755916274739,2.11913793,4718.9,4717.8,0.02]
[1755916274947,15.96473793,4718.9,4717.8,0.02]
[1755916275267,10.2579,4718.9,4717.8,0.02]
[1755916275438,14.60962278,4718.9,4717.8,0.02]
[1755916275640,16.72876071,4718.9,4717.8,0.02]
[1755916275867,14.60962278,4718.9,4717.8,0.02]
[1755916276062,16.72876071,4718.9,4717.8,0.02]
[1755916276262,14.60962278,4718.9,4717.8,0.02]
[1755916276582,2.11956015,4718.0,4717.8,0.02]
[1755916276740,8.7526,4717.9,4717.8,0.02]
[1755916276943,9.1859,4717.9,4717.8,0.02]
[1755916277344,9.51770536,4717.9,4717.8,0.02]
[1755916277566,10.17770536,4717.9,4717.8,0.02]
[1755916277772,12.29729246,4717.9,4717.8,0.02]
[1755916277981,12.45648411,4717.9,4717.8,0.02]
[1755916279274,3.0,4717.6,4716.8,0.02]
[1755916279477,3.0,4717.8,4716.8,0.02]
[1755916279478,2.88643646,4716.9,4716.8,0.02]
[1755916279685,14.4974,4716.9,4716.8,0.02]
[1755916279996,14.9528,4716.9,4716.8,0.02]
[1755916280195,17.40473261,4716.9,4716.8,0.02]
[1755916280368,10.61469615,4716.9,4716.8,0.02]
[1755916280570,14.62169615,4716.9,4716.8,0.02]
[1755916281073,14.16629615,4716.9,4716.8,0.02]
[1755916281403,11.16629615,4716.9,4716.8,0.02]
[1755916281781,11.16629615,4716.9,4716.8,0.4575]
[1755916281782,6.07329615,4716.9,4716.8,0.4575]
[1755916282099,2.06729615,4716.9,4716.8,0.4575]
[1755916282282,6.07429615,4716.9,4716.8,0.4575]
[1755916282469,6.07429615,4716.9,4716.8,0.02]
[1755916282881,2.06729615,4716.9,4716.8,0.02]
[1755916283091,2.06729615,4716.9,4716.8,0.4575]
[1755916283298,6.07029615,4716.9,4716.8,0.4575]
[1755916284005,9.41929615,4716.9,4716.8,0.02]
[1755916285909,9.42129615,4716.9,4716.8,0.02]
[1755916286582,11.54133261,4716.9,4716.8,0.02]
[1755916286782,9.42129615,4716.9,4716.8,0.02]
[1755916286995,11.54133261,4716.9,4716.8,0.021]
[1755916288085,14.43733261,4716.9,4716.8,0.021]
[1755916288776,0.66,4716.2,4715.8,0.02]
[1755916288983,3.66,4716.0,4715.8,0.02]
[1755916289328,2.11998461,4717.1,4715.8,0.02]
[1755916289329,13.719,4715.9,4715.8,0.02]
[1755916289490,4.63,4715.9,4715.8,0.02]
[1755916289689,8.624,4715.9,4715.8,0.02]
[1755916291078,9.0794,4715.9,4715.8,0.02]
[1755916291305,8.624,4715.9,4715.8,0.02]
[1755916291609,10.74448601,4715.9,4715.8,0.02]
[1755916291809,11.19988601,4715.9,4715.8,0.02]
[1755916291976,11.85988601,4715.9,4715.8,0.02]
[1755916293005,11.85088601,4715.9,4715.8,0.02]
[1755916293924,12.15708601,4715.9,4715.8,0.02]
[1755916294087,12.26348601,4715.9,4715.8,0.02]
[1755916295105,12.25448601,4715.9,4715.8,0.02]
[1755916295642,5.0426,4715.9,4715.8,0.02]
[1755916295820,4.63,4715.9,4715.8,0.02]
[1755916295993,8.604,4715.9,4715.8,0.02]
[1755916296189,12.47801899,4715.9,4715.8,0.02]
[1755916296626,12.59055397,4715.9,4715.8,0.02]
[1755916297221,4.96193298,4715.9,4715.8,0.02]
[1755916297418,11.05641899,4715.9,4715.8,0.02]
[1755916298135,9.24213298,4715.9,4715.8,0.02]
[1755916298435,11.36261899,4715.9,4715.8,0.02]
[1755916299126,11.8061481,4715.9,4715.8,0.02]
[1755916299929,1.96193298,4715.9,4715.8,0.7506]
[1755916300134,5.596,4715.9,4715.8,0.7506]
[1755916300634,1.63,4715.9,4715.8,0.7506]
[1755916300800,5.596,4715.9,4715.8,0.7506]
[1755916301234,5.596,4715.9,4715.8,0.3131]
[1755916301432,5.596,4715.9,4715.8,0.02]
[1755916301802,5.593,4715.9,4715.8,0.02]
[1755916302200,9.03777443,4715.9,4715.8,0.02]
[1755916302633,5.07477443,4715.9,4715.8,0.02]
[1755916302810,9.03677443,4715.9,4715.8,0.02]
[1755916303239,9.03577443,4715.9,4715.8,0.02]
[1755916303408,0.77671133,4715.9,4715.8,0.7506]
[1755916303604,5.9229369,4715.9,4715.8,0.7506]
[1755916303809,5.9259369,4715.9,4715.8,0.7506]
[1755916304208,5.9259369,4715.9,4715.8,0.02]
[1755916304416,1.9629369,4715.9,4715.8,0.02]
[1755916304617,5.9239369,4715.9,4715.8,0.7506]
[1755916304817,5.9239369,4715.9,4715.8,0.7516]
[1755916305027,8.9239369,4715.9,4715.8,0.021]
[1755916305229,9.3679883,4715.9,4715.8,0.021]
[1755916305767,9.4743883,4715.9,4715.8,0.021]
[1755916305924,5.5153883,4715.9,4715.8,0.021]